Cogmind - Beta 13 @@@ ROGUE MODE // 2024.07.08 @ 00:57:01 Player: SIGILL Result: Destroyed by EA-WIM(R) with Subdweller Machine Gun Performance ------------- Evolutions (0) 0 Regions Visited (2) 400 Robots Destroyed (12) 60 Value Destroyed (444) 444 Prototype IDs (2) 40 Alien Tech Used (0) 0 Bonus (0) 0 TOTAL SCORE: 944 Bonus ------- None Cogmind --------- Core Integrity 0/250 Matter 108/300 Energy 99/100 System Corruption 0% Temperature Cool (0) Movement Rolling (110) Location -10/Subcaves Parts ------- > --- POWER (1) -------- (None) > --- PROPULSION (2) --- Subdweller Monowheel > --- UTILITY (2) ------ Small Storage Unit Signal Interpreter > --- WEAPON (2) ------- Battle Rifle Flamer > --- INVENTORY (8) ---- Neutrino Core High-capacity Storage Unit Subdweller Optics Seismic Detector Phase Shifter Subdweller Laser Rocket Launcher Mining Laser Peak State ------------ > --- POWER ------------ Neutrino Core > --- PROPULSION ------- Subdweller Monowheel > --- UTILITY ---------- Small Storage Unit Signal Interpreter > --- WEAPON ----------- Mining Laser Flamer > --- INVENTORY -------- Subdweller Power Source High-capacity Storage Unit Structural Scanner Subdweller Optics Seismic Detector Phase Shifter Battle Rifle Rocket Launcher [Rating: 14] Favorites ----------- Power Light Ion Engine Engine Light Ion Engine Power Core Neutrino Core Propulsion Aluminum Leg Leg Aluminum Leg Wheel Subdweller Monowheel Utility Signal Interpreter Device Terrain Scanner Storage Small Storage Unit Processor Signal Interpreter Weapon Rocket Launcher Energy Gun Medium Laser Energy Cannon Beam Cannon Ballistic Gun Battle Rifle Ballistic Cannon Light Cannon Launcher Rocket Launcher Special Weapon Flamer Build | -11 -10 -10 ------- Run | Yrd Mat Sub Slots Evolved . | . . . Power . | . . . Propulsion . | . . . Utility . | . . . Weapon . | . . . Parts Attached 58 | 6 30 22 Power 8 | 1 4 3 Engine 7 | 1 4 2 Core 1 | . . 1 Reactor . | . . . Propulsion 9 | 3 5 1 Treads . | . . . Leg 8 | 3 5 . Wheel 1 | . . 1 Hover . | . . . Flight . | . . . Utility 7 | . 7 . Device 4 | . 4 . Storage 1 | . 1 . Processor 2 | . 2 . Hackware . | . . . Protection . | . . . Artifact . | . . . Weapon 34 | 2 14 18 Energy Gun 2 | 1 1 . Energy Cannon 1 | . . 1 Ballistic Gun 9 | 1 1 7 Ballistic Cannon 1 | . 1 . Launcher 8 | . 6 2 Special Weapon 13 | . 5 8 Impact Weapon . | . . . Slashing Weapon . | . . . Piercing Weapon . | . . . Special Melee Weapon . | . . . Unidentified Prototypes . | . . . Parts Lost 5 | . . 5 Power 1 | . . 1 Propulsion 2 | . . 2 Utility . | . . . Weapon 2 | . . 2 Highest Loss Streak 4 | . . 4 To Critical Strikes . | . . . Average Slot Usage (%) 91 | . 96 84 Engine 13 | . 14 12 Leg 19 | . 27 7 Wheel 2 | . . 6 Device 4 | . 7 . Storage 8 | . 5 14 Processor 13 | . 12 14 Energy Gun 4 | . 7 . Energy Cannon 1 | . . 2 Ballistic Gun 4 | . 3 7 Ballistic Cannon 1 | . 2 . Launcher 9 | . 12 6 Special Weapon 5 | . 1 11 Naked Turns . | . . . Heaviest Build 22 | 7 16 22 Greatest Support 20 | 20 20 20 Greatest Overweight (x) 5 | . 1 5 Average Overweight (x) . | . . . Largest Inventory Capacity 8 | 5 8 8 Average Capacity 6 | 5 6 8 Most Carried 8 | 5 8 8 Average Carried 6 | 2 6 7 Final Capacity 8 | 5 8 8 Final Carried 8 | 5 8 8 Class Distribution -------------------- 100% | Mutant Dominant Class ---------------- Mutant | -10/Materials Mutant | -10/Subcaves Resources | -11 -10 -10 ----------- Run | Yrd Mat Sub Matter Collected 814 | 272 197 345 Remotely . | . . . Salvage Created 328 | 37 60 231 Parts 21 | 2 7 12 Haulers Intercepted . | . . . Recyclers Shooed . | . . . Parts Field Recycled . | . . . Retrieved Matter . | . . . Parts Self-Destructed 8 | . . 8 Prevented . | . . . Kills | -11 -10 -10 ------- Run | Yrd Mat Sub Combat Hostiles Destroyed 11 | 1 1 9 Guns 2 | 1 1 . Cannons 1 | . . 1 AOE 6 | . . 6 Classes Destroyed 3 | 1 1 1 Watcher 1 | . 1 . Grunt 2 | 1 1 . Subdweller 9 | . . 9 Best Kill Streak 4 | 1 1 4 Combat Bots Only 4 | 1 1 4 Max Kills in Single Turn 2 | 1 1 2 Gunslinging . | . . . Exploded 2 | . . 2 Melee . | . . . Uniques/NPCs Destroyed . | . . . Combat | -11 -10 -10 -------- Run | Yrd Mat Sub Hostile Shots Fired 58 | 5 8 45 Missed 20 | 2 1 17 Damage Taken 912 | 32 80 800 Core 275 | 10 46 219 Absorbed by Shields . | . . . Core Remaining (%) 96 | 96 . . Volleys Fired 78 | 4 35 39 Largest 2 | 2 2 2 Hottest 200 | 70 100 200 Shots Fired 114 | 8 44 62 Gun 33 | 8 18 7 Cannon 11 | . . 11 Launcher 18 | . . 18 Special 52 | . 26 26 Kinetic 20 | 4 9 7 Thermal 76 | 4 35 37 Explosive 18 | . . 18 Electromagnetic . | . . . Robot Hit Streak 12 | 6 3 12 Robot Miss Streak 2 | 1 2 2 Penetration Max . | . . . Secondary Targets 1 | . 1 . Max Gunslinging Chain 1 | . 1 . Shots Hit Robots 60 | 6 11 43 Core Hits 23 | 2 4 17 Critical Kills . | . . . Critical Parts Destroyed . | . . . Critical Strikes 4 | 1 . 3 Burn 4 | 1 . 3 Melee Attacks . | . . . Impact . | . . . Slashing . | . . . Piercing . | . . . Sneak Attacks . | . . . Combat Hostiles . | . . . Follow-up Attacks . | . . . Damage Inflicted 1781 | 77 141 1563 Guns 340 | 77 141 122 Cannons 174 | . . 174 Explosions 962 | . . 962 Melee . | . . . Ramming . | . . . Kinetic 251 | 39 90 122 Thermal 568 | 38 51 479 Explosive 962 | . . 962 Electromagnetic . | . . . Impact . | . . . Slashing . | . . . Piercing . | . . . Highest Corruption . | . . . Average Corruption . | . . . Corruption Purged . | . . . Corruption Blocked . | . . . Overload Shots . | . . . Overflow Damage . | . . . Projectiles . | . . . Explosions . | . . . Melee . | . . . Knockbacks . | . . . Impact . | . . . Kinetic . | . . . Secondary . | . . . Self-Inflicted Damage 40 | . . 40 Shots 1 | . . 1 Rammed . | . . . Targets Rammed . | . . . Kicked . | . . . Crushed . | . . . Highest Temperature 106 | 54 106 . Average Temperature 33 | 31 33 . Received Heat Transfer 228 | 18 42 168 Siege Activations . | . . . Robots Corrupted . | . . . Combat Hostiles . | . . . Parts Fried . | . . . Impact Corruptions . | . . . Robots Melted 2 | . . 2 Combat Hostiles 2 | . . 2 Parts Melted 4 | 1 . 3 Heat Transferred 2383 | 185 148 2050 Parts Sabotaged . | . . . Parts Stolen . | . . . Parts Stripped . | . . . Power Chain Reactions . | . . . Alert | -11 -10 -10 ------- Run | Yrd Mat Sub Peak Influence 62 | 20 62 . Initial 13 | . 13 . Average 16 | 3 17 . Maximum Alert Level . | . . . Low Security (%) 100 | 100 100 . Level 1 . | . . . Level 2 . | . . . Level 3 . | . . . Level 4 . | . . . Level 5 . | . . . High Security . | . . . Max Security . | . . . Squads Dispatched 3 | . 3 . Investigation 2 | . 2 . Extermination . | . . . Reinforcement 1 | . 1 . Assault . | . . . Garrison . | . . . Intercept . | . . . Searches Triggered . | . . . Construction Impeded . | . . . Haulers Reinforced . | . . . Active Scanning Responses . | . . . Cargo Convoy Interrupts . | . . . Stealth | -11 -10 -10 --------- Run | Yrd Mat Sub Distress Signals 2 | . 2 . Communications Jammed . | . . . Distress Signals . | . . . Times Spotted 19 | 1 2 16 Peak Tracking Total 8 | 1 2 8 Tactical Retreats 4 | . . 4 Traps | -11 -10 -10 ------- Run | Yrd Mat Sub Traps Triggered 1 | . 1 . Indirectly . | . . . Trap Hack Attempts . | . . . Triggered . | . . . Disarmed . | . . . Reprogrammed . | . . . Reused . | . . . Traps Extracted . | . . . Installed . | . . . Triggered . | . . . Machines | -11 -10 -10 ---------- Run | Yrd Mat Sub Machines Disabled . | . . . Max in Single Turn . | . . . Machines Repaired . | . . . Machines Dismantled . | . . . Machines Sabotaged . | . . . Overloaded Fab Kills . | . . . Hacking | -11 -10 -10 --------- Run | Yrd Mat Sub Machines Accessed 8 | . 8 . Terminals 6 | . 6 . Fabricators . | . . . Repair Stations . | . . . Recycling Units 2 | . 2 . Scanalyzers . | . . . Garrison Access . | . . . Total Hacks 25 | . 25 . Successful 18 | . 18 . Failed 7 | . 7 . Catastrophic . | . . . Database Lockouts . | . . . Manual 7 | . 7 . Terminals 22 | . 22 . Fabricators . | . . . Repair Stations . | . . . Recycling Units 3 | . 3 . Scanalyzers . | . . . Garrison Access . | . . . Terminal Hacks 15 | . 15 . Record 5 | . 5 . Prototype ID Bank 1 | . 1 . Emergency Access Points 2 | . 2 . Alert Level 1 | . 1 . Locate Traps 3 | . 3 . Investigation Status 1 | . 1 . Zone Layout 2 | . 2 . Fabricator Hacks . | . . . Repair Station Hacks . | . . . Recycling Unit Hacks 3 | . 3 . Recycle Component 1 | . 1 . Report Inventory 2 | . 2 . Scanalyzer . | . . . Garrison Access Hacks . | . . . Unauthorized Hacks . | . . . Terminals . | . . . Fabricators . | . . . Repair Stations . | . . . Recycling Units . | . . . Scanalyzers . | . . . Garrison Access . | . . . Data Cores Recovered . | . . . Used . | . . . Hacking Detections 6 | . 6 . Full Trace Events 2 | . 2 . Feedback Events . | . . . Feedback Blocked . | . . . Robot Schematics Acquired . | . . . Robots Built . | . . . Authchips . | . . . Time . | . . . Total Robot Build Rating . | . . . Part Schematics Acquired . | . . . Parts Built . | . . . Authchips . | . . . Time . | . . . Total Part Build Rating . | . . . Parts Repaired . | . . . Time . | . . . Parts Recycled 1 | . 1 . Recycled Matter . | . . . Retrieved Matter . | . . . Retrieved Components . | . . . Parts Scanalyzed . | . . . Part Schematics Acquired . | . . . Parts Damaged . | . . . Bothacking | -11 -10 -10 ------------ Run | Yrd Mat Sub Used RIF Installer . | . . . Robots Hacked . | . . . Non-combat . | . . . Combat . | . . . Robot Hacks Applied . | . . . Relay Couplers Released . | . . . Fabnet Peak Effective % . | . . . Robots Rewired . | . . . Allies Hacked . | . . . Hacks Repelled . | . . . Allies | -11 -10 -10 -------- Run | Yrd Mat Sub Total Allies . | . . . Largest Group . | . . . Highest-Rated Group . | . . . Highest-Rated Ally . | . . . Total Orders . | . . . Ally Attacks . | . . . Total Damage . | . . . Kills . | . . . Allies Corrupted . | . . . Allies Melted . | . . . Intel | -11 -10 -10 ------- Run | Yrd Mat Sub Robot Analysis Total . | . . . Derelict Logs Recovered . | . . . Drone Launches . | . . . Drone Recoveries . | . . . Exploration | -11 -10 -10 ------------- Run | Yrd Mat Sub Turns Passed 2285 | 104 1230 951 Spaces Moved 1500 | 67 854 579 Core 85 | 16 1 68 Treads . | . . . Legs 1098 | 51 853 194 Wheels 317 | . . 317 Hover . | . . . Flight . | . . . Fastest Speed 50 | 50 100 110 Average Speed 123 | 103 119 130 Slowest Speed 300 | 120 120 300 Overloaded Moves . | . . . Propulsion Burnouts . | . . . Robots Hopped . | . . . Cave-ins Triggered . | . . . Exploration Rate (%) 42 | 8 96 24 Regions Visited 2 Branch Regions 1 Pre-discovered Areas . | . . . Known Exits Taken 1 | . 1 . Unknown Exits Taken 1 | 1 . . Scrap Searched 2 | . . 2 Spaces Dug 26 | . 26 . Terrain Destroyed 95 | . 26 69 Melee . | . . . Projectile 26 | . 26 . AOE 69 | . . 69 Terrain Rammed . | . . . Walls Destroyed . | . . . Machines Disabled . | . . . Actions | -11 -10 -10 --------- Run | Yrd Mat Sub Total 1724 | 91 961 672 Wait 26 | 9 9 8 Move 1498 | 66 853 579 Hop . | . . . Pick Up 29 | 5 14 10 Fast Attach 15 | 5 8 2 Attach 2 | . . 2 Detach 2 | . 1 1 Swap 41 | 1 22 18 Drop 30 | 1 19 10 Fire 78 | 4 35 39 Melee . | . . . Ram . | . . . Kick . | . . . Crush . | . . . Escape Stasis . | . . . Rewire 3 | . . 3 Trap . | . . . Miscellaneous . | . . . Route ------- -11/Scrapyard -10/Materials (discovered 5 exits: *Mat x3 / *Min / *Sub) -10/Subcaves History --------- Turn | Location | Event 2 | -11/Scrapyard | Met Revision 17 62 | -11/Scrapyard | Discovered new exit (range 8) 105 | -11/Scrapyard | Entered Materials 333 | -10/Materials | Build established: Mutant 338 | -10/Materials | Discovered new exit (range 14) 542 | -10/Materials | Discovered new exit (range 5) 546 | -10/Materials | Identified exit to Materials 604 | -10/Materials | Discovered new exit (range 16) 637 | -10/Materials | Identified exit to Mines 1030 | -10/Materials | Discovered exit to Materials (range 11) 1325 | -10/Materials | Discovered new exit (range 7) 1334 | -10/Materials | Identified exit to Subcaves 1335 | -10/Materials | Entered Subcaves 1401 | -10/Subcaves | A swath of the cavern ceiling suddenly collapsed 1410 | -10/Subcaves | Ambushed by swarm of Subdwellers 1471 | -10/Subcaves | Lost 4 allies 1595 | -10/Subcaves | Ambushed by Subdweller buried in earth 1618 | -10/Subcaves | Core integrity fell below 50% 1628 | -10/Subcaves | Core integrity fell below 20% 1691 | -10/Subcaves | Lost 4 parts (2n2w) 2286 | -10/Subcaves | Destroyed by EA-WIM(R) with Subdweller Machine Gun Last Messages --------------- Acquired 27 matter. Acquired 30 matter. Dropped Battle Rifle. Acquired Battle Rifle. Dropped Broken Sub. Power Source. Acquired Sub. Power Source. Dropped Structural Scanner. Acquired Broken Sub. Power Source. Sub. Power Source destroyed. Q8-V25(R) suffers critical hit (Burn). Q8-V25(R) destroyed. Acquired 34 matter. Searching scrap... Found Sub. Laser. Found Piercing Trap. Found 23 Matter. Acquired 23 matter. Dropped Broken Sub. Power Source. Acquired Sub. Laser. Subatomizers dissect the Disposable Heat Sink. Map ----- +----------------------------------------------------+ | ?????????????????????????????## ##?????## | | ???????????????###???????????# ##????## | | ??????????????## #?#######???# ####?# ## | | ??????????????# ### ##??# #### # | | ??????????????# ## #??# ### | | ??????????????## #??# ## ## | | ???????????????## #### #?## | | ????????????????# ### ####?# | | ????????????????# # ###?## ## | | ????????????????# # ### ##### | | ????????????????# ## ##### | | ????????????###### ! & # # | | ????????????#"& ##" & ## | | ????????????#&# ## # | | ????????????#&##"#" ## ## ## | | ????????????# *### ### ## ## ##? | | ????????????#"$## #?## ## ##?? | | ????????????##### ##??# ## ###??? | | ????????????????## #??? ## #????? | | ?????????????????#### #?? ## #???? | | ????????????????????## #?## ??? | | ?????????????????????# #??## ?? | | ????????????????????## #???# ? | | ???????????????????## #??? # | | ???????????????????# ##?? ### ## | | ???????????????????# @ #?? ##??###? | | ???????????????????## R ???????? | | ????????????????????#### ???????? | | ???????????????????????# ##### ???????? | | ???????????????????????## ###???####???????? | | ????????????????????????? #????????????????? | | ????????????????????????? ##????????????????? | | ????????????????????????? ?????????????????? | | ?????????????????????????? ????????????????? | | ?????????????????????????? # ????????????????? | | ?????????????????????????? ##???????????????? | | ?????????????????????????????????????????????? | | ?????????????????????????????????????????????? | | ?????????????????????????????????????????????? | | ?????????????????????????????????????????????? | | ?????????????????????????????????????????????? | | ?????????????????????????????????????????????? | | ?????????????????????????????????????????????? | | ?????????????????????????????????????????????? | | ?????????????????????????????????????????????? | | ?????????????????????????????????????????????? | | ?????????????????????????????????????????????? | | ?????????????????????????????????????????????? | | ?????????????????????????????????????????????? | | ?????????????????????????????????????????????? | +----------------------------------------------------+ Best States ------------- Heat Dissipation 25 Energy Generation 15 Energy Capacity 200 Matter Stores 300 Matter Capacity 300 Sight Range 16 Terrain Scan Range 14 Terrain Scan Density 10 ECM Strength 1 Evasion (%) 55 Item Schematics ----------------- None Robot Schematics ------------------ None Fabricated ------------ Nothing Alien Tech Used ----------------- None Achievements -------------- None Challenges ------------ None Game ------ Seed AssemblySiegeArmor Manual? 0 Play Time 01:22:46 Cumulative 7.0 hours Start 2024.07.07 @ 23:18:32 End 2024.07.08 @ 00:57:01 Sessions 1 Manual Loads 0 Difficulty Rogue Special Mode None Game No. 3 Rogue 3 Adventurer 0 Explorer 0 Win Type - Total 0 Types 0/0/0/0/0/0/0/0/0 Lore% 1 Gallery% 7 Achievement% 6 Wizard Run 0 Options --------- Layout 1 ASCII 0 Keyboard 0 Movement Numpad Keybinds 0 Fullscreen 1 Font 32/Tamsyn Map View 50x35 Zoom Use 0% Tactical HUD 0 Map Filters NONE Filters NONE Steam 1 RUN: 133a0e5b-a62a-415e-98c4-85dcd01b5afa